fUSD/lending_fUSD_20240319
["ID","MTS","AMOUNT","RATE_DAILY","PERIOD"]
[319583938,1710882650002,-500.0,0.00030136,2]
[319583939,1710882650012,-500.0,0.00030136,2]
[319583940,1710882650021,-10000.0,0.00030136,7]
[319583941,1710882650030,-10000.0,0.00030136,7]
[319583942,1710882650040,-1041.24,0.00030136,2]
[319583943,1710882650049,-10000.0,0.00030136,7]
[319583944,1710882650059,-151.0,0.00030136,7]
[319583945,1710882650069,-151.0,0.00030136,7]
[319583946,1710882650078,-151.0,0.00030136,7]
[319583947,1710882650090,-17512.37,0.00030136,2]
[319583948,1710882650102,-500.0,0.00030136,2]
[319583949,1710882650111,-17339.15,0.00030136,2]
[319583950,1710882650120,-10000.0,0.00030136,7]
[319583951,1710882650129,-10000.0,0.00030136,7]
[319583952,1710882650138,-1002.29,0.00030136,2]
[319583953,1710882650148,-3962.69,0.00030136,2]
[319583954,1710882650157,-10000.0,0.00030136,7]
[319583955,1710882650167,-9835.64,0.00030136,2]
[319583956,1710882650176,-1130.7,0.00030136,2]
[319583957,1710882650185,-500.0,0.00030136,2]
[319583958,1710882650195,-7920.45,0.00030136,2]
[319583959,1710882650205,-3969.68,0.00030136,2]
[319583960,1710882650214,-10000.0,0.00030136,7]
[319583961,1710882650224,-10000.0,0.00030136,7]
[319583962,1710882650234,-12013.86,0.00030136,2]
[319583963,1710882650243,-176.778294,0.00030136,7]
[319583964,1710882650253,-7719.87,0.00030136,2]
[319583965,1710882650262,-10536.34,0.00030136,2]
[319583966,1710882650271,-500.0,0.00030136,2]
[319583967,1710882650280,-1108.74,0.00030136,2]
[319583968,1710882650290,-545.96,0.00030136,2]
[319583969,1710882650299,-661.25,0.00030136,2]
[319583970,1710882650308,-1587.13,0.00030136,2]
[319583971,1710882650318,-500.0,0.00030136,2]
[319583972,1710882650328,-8750.57,0.00030136,2]
[319583973,1710882650341,-1402.87,0.00030136,2]
[319583974,1710882650351,-1142.53,0.00030136,2]
[319583975,1710882650362,-500.0,0.00030136,2]
[319583976,1710882650372,-500.0,0.00030136,2]
[319583977,1710882650382,-7452.22,0.00030136,2]
[319583978,1710882650391,-560.16,0.00030136,2]
[319583979,1710882650401,-312.50723452,0.00030136,2]
[319583980,1710882650410,-10000.0,0.00030136,7]
[319583981,1710882650419,-176.778294,0.00030136,7]
[319583982,1710882650430,-23655.28,0.00030136,2]
[319583983,1710882650439,-176.778294,0.00030136,7]
[319583984,1710882650448,-657.01,0.00030136,2]
[319583985,1710882650458,-10720.27581564,0.00030136,2]
[319583986,1710882651032,-80.50418436,0.00030136,2]
[319583987,1710882651042,-2288.27015991,0.00030136,2]
[319583988,1710882651056,-508.25984009,0.00030136,2]
[319583989,1710882651067,-843.47728424,0.00030136,2]
[319583990,1710882651081,-141.88271576,0.00030136,2]
[319583991,1710882651093,-259.03325042,0.00030136,2]
[319583992,1710882651106,-240.96674958,0.00030136,2]
[319583993,1710882651117,-10162.33,0.00030136,2]
[319583994,1710882651127,-132.14158231,0.00030136,2]
[319583995,1710882651141,-367.85841769,0.00030136,2]
[319583996,1710882651151,-151.0,0.00030136,7]
[319583997,1710882651161,-366.04806824,0.00030136,2]
[319583998,1710882651258,-1109.76890871,0.00030136,2]
[319583999,1710882652018,-823.6111,0.0002543,2]
[319584000,1710882652029,-351.87098952,0.00030135,4]
[319584001,1710882652040,-574.51616078,0.00030136,2]
[319584002,1710882652255,-2990.47686227,0.00030136,2]
[319584003,1710882652265,-151.0,0.00030136,7]
[319584004,1710882652275,-151.0,0.00030136,7]
[319584005,1710882652285,-176.778294,0.00030136,7]
[319584006,1710882652295,-176.778294,0.00030136,7]
[319584007,1710882652304,-176.778294,0.00030136,7]
[319584008,1710882652314,-3531.95,0.00030136,2]
[319584009,1710882652324,-500.0,0.00030136,2]
[319584010,1710882652335,-500.0,0.00030136,2]
[319584011,1710882652345,-1814.968041,0.00030136,7]
[319584012,1710882652355,-615.73,0.00030136,2]
[319584013,1710882652723,-505.0232933,0.00030136,2]
[319584014,1710882652734,-696.93,0.00030136,2]
[319584015,1710882652744,-13551.28692144,0.00030136,2]
[319584018,1710882793888,-155.0,0.00023196,2]
[319584019,1710882793916,-155.0,0.00023196,2]
[319584020,1710882793942,-155.0,0.00023197,2]
[319584021,1710882793972,-340.82508517,0.00023197,2]
[319584022,1710882793997,-155.0,0.00023198,2]
[319584023,1710882794022,-198.89229765,0.00023198,2]
[319584024,1710882794047,-1216.73937758,0.00023198,2]
[319584025,1710882794072,-5507.51645168,0.00023199,2]
[319584026,1710882833449,-576.0,0.000232,2]
[319584027,1710882866425,-1366.63559887,0.00024306,2]
[319584028,1710882866453,-1090.7317,0.00024307,2]
[319584030,1710883122177,170.47,0.00016712,2]
[319584031,1710883264607,-1361.61670232,0.00026881,2]
[319584032,1710883264626,-638.38329768,0.00026882,2]
[319584033,1710883265753,-728.25230119,0.00026882,2]
[319584034,1710883265778,-205.99,0.00026893,2]
[319584035,1710883265802,-297.84,0.00027025,2]
[319584036,1710883265824,-204.35,0.00028472,2]
[319584037,1710883265847,-510.92,0.00028496,2]
[319584038,1710883265871,-52.64769881,0.00028519,2]
[319584039,1710883266307,-197.35230119,0.00028519,2]
[319584040,1710883266333,-150.0,0.00028548,2]
[319584041,1710883266358,-734.98,0.00028597,2]
[319584042,1710883266381,-917.66769881,0.00028627,2]
[319584043,1710883275855,-548.12529714,0.00028627,2]
[319584044,1710883282727,712.01714701,0.00026941,2]
[319584046,1710883304747,712.01714701,0.00026941,2]
[319584047,1710883322731,27.84040884,0.00026941,2]
[319584048,1710883322752,684.17673817,0.00026941,2]
[319584050,1710883338734,712.01714701,0.00026941,2]
[319584052,1710883356737,603.80611482,0.00026941,2]
[319584053,1710883356758,108.21103219,0.00026941,2]
[319584054,1710883362318,155.0678656,0.00028484,2]
[319584055,1710883365565,195.69,0.00026978,2]
[319584056,1710883372158,1391.2102796,0.00027746,2]
[319584057,1710883372472,149.82082261,0.00028071,2]
[319584058,1710883397685,-712.01714701,0.00026941,2]
[319584059,1710883397707,-1241.38945699,0.00028071,2]
[319584060,1710883397728,-46.593396,0.0002848,2]
[319584061,1710883398261,-1344.6168836,0.0002848,2]
[319584062,1710883398281,-655.3831164,0.00028533,2]
[319584063,1710883438284,-776.0493619,0.0002694,2]
[319584064,1710883438307,-712.01714701,0.00026941,2]
[319584065,1710883438329,-511.93349109,0.00028533,2]
[319584066,1710883440115,-223.89367211,0.00028533,2]
[319584067,1710883440138,-250.0,0.00028656,2]
[319584068,1710883440357,-150.0,0.00028656,120]
[319584069,1710883440381,-250.0,0.00028669,2]
[319584070,1710883440404,-1126.10632789,0.0002872,2]
[319584071,1710883441575,-234.75367211,0.0002872,2]
[319584072,1710883441598,-500.0,0.00028734,2]
[319584073,1710883458751,712.01714701,0.00026941,2]
[319584074,1710883472745,553.22918088,0.00026941,2]
[319584075,1710883472765,158.78796613,0.00026941,2]
[319584076,1710883490753,425.02367128,0.00026941,2]
[319584077,1710883501530,1391.2102796,0.00028666,2]
[319584078,1710883549415,24.97808299,0.00028673,2]
[319584079,1710883549436,125.02191701,0.00028673,2]
[319584086,1710883565091,1874.97808299,0.0001863,2]
[319584087,1710883565115,486.75191701,0.0001863,2]
[319584099,1710883637928,-160.32262991,0.00028835,2]
[319584100,1710883637949,-1280.40240156,0.00028835,2]
[319584101,1710883637971,-72.52305152,0.00028836,2]
[319584102,1710883644673,-177.47694848,0.00028836,2]
[319584103,1710883644695,-250.0,0.00028855,2]
[319584104,1710883644718,-150.0,0.00028868,120]
[319584105,1710883646107,250.0,0.00028813,2]
[319584107,1710883654121,1172.52305152,0.00028437,2]
[319584147,1710883832825,-234.45684532,0.00028437,2]
[319584148,1710883832836,-340.28,0.0002885,2]
[319584149,1710883832846,-166.34293919,0.00028895,2]
[319584150,1710883832856,-155.33,0.00028995,2]
[319584151,1710883832866,-500.0,0.00029136,2]
[319584152,1710883832877,-195.69,0.00029242,2]
[319584153,1710883832887,-155.33,0.00029285,2]
[319584154,1710883832898,-832.55,0.00029315,2]
[319584155,1710883832907,-346.45,0.00029315,2]
[319584156,1710883832918,-150.0,0.00029315,2]
[319584158,1710883832927,-6.71307631,0.00029315,2]
[319584167,1710883833009,-143.28692369,0.00029315,2]
[319584169,1710883833018,-618.73713083,0.00029335,2]
[319584171,1710883833028,-516.83,0.00029378,2]
[319584173,1710883833038,-167.0,0.00029426,2]
[319584175,1710883833047,-643.24708674,0.00029531,2]
[319584177,1710883833056,-516.83,0.00029557,2]
[319584179,1710883833066,-155.33,0.00029575,2]
[319584181,1710883833076,-1000.0,0.000296,2]
[319584183,1710883833085,-927.4735197,0.00029781,2]
[319584185,1710883833096,-434.02777,0.0002983,2]
[319584187,1710883833108,-155.33,0.00029865,2]
[319584189,1710883833117,-800.0,0.00029895,8]
[319584191,1710883833127,-500.0,0.00029895,2]
[319584193,1710883833136,-200.0,0.00029895,2]
[319584195,1710883833147,-349.6859579,0.00029934,2]
[319584197,1710883833157,-155.02390328,0.00029934,2]
[319584199,1710883833167,-373.8809731,0.00029934,2]
[319584201,1710883833178,-210.17849718,0.00029934,2]
[319584203,1710883833188,-202.74751577,0.00029935,2]
[319584205,1710883833197,-812.38625259,0.00029935,2]
[319584207,1710883833207,-38212.77353929,0.00029936,2]
[319584209,1710883833221,-19470.14382396,0.00029936,2]
[319584211,1710883833234,-11954.42715125,0.00029936,2]
[319584215,1710883833254,-463.515,0.00029936,2]
[319584218,1710883833279,-327.13079999,0.00029936,2]
[319584223,1710883833324,-413.59,0.00029936,2]
[319584224,1710883833337,-3816.09999998,0.00029936,2]
[319584225,1710883833395,-1730.00000027,0.00029936,2]
[319584229,1710883838345,-272.147876,0.00029936,2]
[319584230,1710883838358,-11713.69623997,0.00029936,2]
[319584231,1710883838472,-887.5,0.00029936,2]
[319584242,1710883841173,-3558.58395,0.00029936,2]
[319584243,1710883841184,-2664.88351978,0.00029936,2]
[319584244,1710883841195,-2428.48129262,0.00029936,2]
[319584245,1710883841206,-426.48,0.00029936,2]
[319584246,1710883841239,-1660.54680689,0.00029936,2]
[319584247,1710883841248,-1685.42096325,0.00029936,2]
[319584248,1710883841260,-3298.71083675,0.00029936,2]
[319584249,1710883841269,-1000.0,0.00029936,2]
[319584250,1710883841279,-635.6421,0.00029936,2]
[319584251,1710883841288,-334.20467514,0.00029936,2]
[319584252,1710883841297,-200.0,0.0002994,2]
[319584253,1710883841306,-500.0,0.00029958,2]
[319584254,1710883841315,-500.0,0.00029958,2]
[319584255,1710883841326,-500.0,0.00029958,2]
[319584256,1710883841336,-506.13,0.00029958,2]
[319584257,1710883841345,-200.0,0.00029986,2]
[319584258,1710883841354,-2500.0,0.0003,10]
[319584259,1710883841363,-2381.74727976,0.0003,3]
[319584260,1710883841372,-200.0,0.00030031,2]
[319584261,1710883841381,-800.0,0.00030031,8]
[319584262,1710883841390,-200.0,0.00030031,2]
[319584263,1710883841399,-500.0,0.00030031,2]
[319584264,1710883841408,-200.0,0.00030031,2]
[319584265,1710883841417,-1000.0,0.00030036,2]
[319584266,1710883841427,-48634.48680584,0.00030036,2]
[319584267,1710883841449,-8821.75096878,0.00030036,2]
[319584268,1710883843341,-642.20303202,0.00030036,2]
[319584270,1710883843411,-6095.85577562,0.00030036,2]
[319584271,1710883843424,-5999.22816,0.00030036,2]
[319584272,1710883843438,-174806.47525774,0.00030036,2]
[319584273,1710883843448,-11442.1377,0.00030036,2]
[319584274,1710883843458,-956.2702,0.00030036,2]
[319584275,1710883843469,-500.0,0.00030036,2]
[319584276,1710883843479,-1000.0,0.00030036,2]
[319584277,1710883843492,-3042.0699,0.00030036,2]
[319584278,1710883843501,-7500.0,0.00030036,2]
[319584279,1710883843511,-190.22733088,0.00030036,2]
[319584280,1710883843521,-153.39740362,0.00030036,2]
[319584281,1710883843531,-313.89676288,0.00030036,2]
[319584282,1710883843541,-234.05639918,0.00030036,2]
[319584283,1710883843551,-6447.07554021,0.00030036,2]
[319584284,1710883843561,-244.73580881,0.00030036,2]
[319584285,1710883843570,-342.07031388,0.00030036,2]
[319584286,1710883843580,-222.032006,0.00030075,3]
[319584287,1710883843590,-200.0,0.00030076,2]
[319584288,1710883843601,-222.032006,0.00030085,4]
[319584289,1710883843611,-222.032006,0.00030085,3]
[319584290,1710883843621,-222.032006,0.00030085,2]
[319584291,1710883843632,-222.032006,0.00030095,2]
[319584292,1710883843642,-222.032006,0.00030095,3]
[319584293,1710883843652,-222.032006,0.00030095,4]
[319584294,1710883843662,-927.4735197,0.00030103,2]
[319584295,1710883843672,-313.89676284,0.00030105,2]
[319584296,1710883843682,-212.89,0.00030105,2]
[319584297,1710883843692,-222.032006,0.00030105,4]
[319584298,1710883843702,-222.032006,0.00030105,3]
[319584299,1710883843712,-222.032006,0.00030105,2]
[319584300,1710883843722,-800.0,0.0003011,2]
[319584301,1710883843732,-150.0,0.00030114,2]
[319584302,1710883843745,-222.032006,0.00030115,2]
[319584303,1710883843754,-222.032006,0.00030115,3]
[319584304,1710883843765,-222.032006,0.00030115,4]
[319584305,1710883843774,-200.0,0.00030121,2]
[319584306,1710883843784,-222.032006,0.00030125,4]
[319584307,1710883843793,-222.032006,0.00030125,3]
[319584308,1710883843803,-222.032006,0.00030125,2]
[319584309,1710883843813,-300.0,0.00030126,2]
[319584310,1710883843823,-150.0,0.00030127,2]
[319584311,1710883843833,-150.0,0.0003013,2]
[319584312,1710883843843,-150.0,0.00030131,2]
[319584313,1710883843852,-150.0,0.00030133,2]
[319584314,1710883843862,-150.0,0.00030133,2]
[319584315,1710883843873,-194.09771204,0.00030134,4]
[319584316,1710883843882,-973.21289016,0.00030134,4]
[319584317,1710883843891,-628.69111435,0.00030134,4]
[319584318,1710883843900,-200.0,0.00030134,2]
[319584319,1710883843910,-3968.55965813,0.00030134,2]
[319584320,1710883843919,-402.84398816,0.00030134,4]
[319584321,1710883843928,-1612.46603768,0.00030134,4]
[319584322,1710883843938,-365.13798834,0.00030134,4]
[319584323,1710883843947,-224.23271556,0.00030134,4]
[319584324,1710883843957,-157.67083797,0.00030134,4]
[319584325,1710883843967,-658.51542217,0.00030134,4]
[319584326,1710883843976,-265.06825087,0.00030134,4]
[319584327,1710883843986,-177.76629921,0.00030134,4]
[319584328,1710883843995,-462.29152881,0.00030134,4]
[319584329,1710883844004,-5000.0,0.00030134,7]
[319584330,1710883844014,-156.6536012,0.00030134,4]
[319584331,1710883844023,-257.78521006,0.00030134,4]
[319584332,1710883844032,-19368.35751359,0.00030134,4]
[319584333,1710883844042,-295.64105002,0.00030134,4]
[319584334,1710883844051,-7060.84494681,0.00030134,4]
[319584335,1710883844061,-155.0,0.00030134,4]
[319584336,1710883844070,-2483.87174996,0.00030134,2]
[319584337,1710883844079,-779.11754695,0.00030134,2]
[319584338,1710883844088,-406.10697296,0.00030134,2]
[319584339,1710883844099,-263.45844408,0.00030134,2]
[319584340,1710883844110,-17171.01435452,0.00030134,10]
[319584341,1710883844119,-335.85375643,0.00030134,4]
[319584342,1710883844129,-203.84339628,0.00030134,4]
[319584343,1710883844138,-289.0340328,0.00030134,4]
[319584344,1710883844147,-212.8531606,0.00030134,4]
[319584345,1710883844157,-183.14442409,0.00030134,4]
[319584346,1710883844166,-156.77039272,0.00030134,4]
[319584347,1710883844175,-155.0,0.00030134,4]
[319584348,1710883844187,-655.64556431,0.00030134,4]
[319584349,1710883844196,-150.0,0.00030134,2]
[319584350,1710883844205,-6356.95672479,0.00030135,4]
[319584351,1710883844214,-222.032006,0.00030135,2]
[319584352,1710883844223,-222.032006,0.00030135,3]
[319584353,1710883844233,-222.032006,0.00030135,4]
[319584354,1710883844248,-618.0,0.00030136,5]
[319584355,1710883844257,-500.0,0.00030136,2]
[319584356,1710883844266,-500.0,0.00030136,2]
[319584357,1710883844275,-273.74424434,0.00030136,2]
[319584358,1710883844283,-223.38255304,0.00030136,2]
[319584359,1710883844292,-500.0,0.00030136,2]
[319584360,1710883844300,-500.0,0.00030136,2]
[319584361,1710883844309,-492.12732184,0.00030136,2]
[319584362,1710883844318,-500.0,0.00030136,2]
[319584363,1710883844327,-500.0,0.00030136,2]
[319584364,1710883844336,-500.0,0.00030136,2]
[319584365,1710883844345,-500.0,0.00030136,2]
[319584366,1710883844355,-500.0,0.00030136,2]
[319584367,1710883844364,-500.0,0.00030136,2]
[319584368,1710883844373,-541.15,0.00030136,2]
[319584369,1710883844383,-500.0,0.00030136,2]
[319584370,1710883844393,-500.0,0.00030136,2]
[319584371,1710883844402,-500.0,0.00030136,2]
[319584372,1710883844412,-782.55,0.00030136,2]
[319584373,1710883844422,-500.0,0.00030136,2]
[319584374,1710883844431,-1175.0,0.00030136,2]
[319584375,1710883844441,-813.24,0.00030136,2]
[319584376,1710883844450,-500.0,0.00030136,2]
[319584377,1710883844459,-569.24,0.00030136,2]
[319584378,1710883844469,-798.81,0.00030136,2]
[319584379,1710883844478,-500.0,0.00030136,2]
[319584380,1710883844489,-500.0,0.00030136,2]
[319584381,1710883844498,-823.89,0.00030136,2]
[319584382,1710883844507,-500.0,0.00030136,2]
[319584383,1710883844517,-500.0,0.00030136,2]
[319584384,1710883844527,-590.39,0.00030136,2]
[319584385,1710883844537,-621.72,0.00030136,2]
[319584386,1710883844547,-500.0,0.00030136,2]
[319584387,1710883844556,-2000.0,0.00030136,2]
[319584388,1710883844566,-500.0,0.00030136,2]
[319584389,1710883844575,-500.0,0.00030136,2]
[319584390,1710883844584,-500.0,0.00030136,2]
[319584391,1710883844594,-500.0,0.00030136,2]
[319584392,1710883844604,-500.0,0.00030136,2]
[319584393,1710883844613,-500.0,0.00030136,2]
[319584394,1710883844622,-500.0,0.00030136,2]
[319584395,1710883844632,-500.0,0.00030136,2]
[319584396,1710883844642,-500.0,0.00030136,2]
[319584397,1710883844651,-500.0,0.00030136,2]
[319584398,1710883844661,-500.0,0.00030136,2]
[319584399,1710883844671,-500.0,0.00030136,2]
[319584400,1710883844680,-180.39050411,0.00030136,2]
[319584401,1710883844690,-500.0,0.00030136,2]
[319584402,1710883844699,-500.0,0.00030136,2]
[319584403,1710883844709,-500.0,0.00030136,2]
[319584404,1710883844719,-750.91,0.00030136,2]
[319584405,1710883844729,-500.0,0.00030136,2]
[319584406,1710883844740,-500.0,0.00030136,2]
[319584407,1710883844750,-827.98,0.00030136,2]
[319584408,1710883844759,-500.0,0.00030136,2]
[319584409,1710883844768,-500.0,0.00030136,2]
[319584410,1710883844778,-508.08831004,0.00030136,2]
[319584411,1710883844787,-562.59,0.00030136,2]
[319584412,1710883844797,-275.72552247,0.00030136,2]
[319584413,1710883844806,-998.0,0.00030136,2]
[319584414,1710883844816,-500.0,0.00030136,2]
[319584415,1710883844826,-500.0,0.00030136,2]
[319584416,1710883844835,-500.0,0.00030136,2]
[319584417,1710883844845,-570.65,0.00030136,2]
[319584418,1710883844854,-500.0,0.00030136,2]
[319584419,1710883844981,-500.0,0.00030136,2]
[319584420,1710883845041,-500.0,0.00030136,2]
[319584421,1710883845051,-500.0,0.00030136,2]
[319584422,1710883845060,-500.0,0.00030136,2]
[319584423,1710883845070,-423.00532306,0.00030136,2]
[319584424,1710883845079,-500.0,0.00030136,2]
[319584425,1710883845088,-500.0,0.00030136,2]
[319584426,1710883845101,-1839.1,0.00030136,2]
[319584427,1710883845111,-500.0,0.00030136,2]
[319584428,1710883845121,-500.0,0.00030136,2]
[319584429,1710883845130,-500.0,0.00030136,2]
[319584430,1710883845140,-500.0,0.00030136,2]
[319584431,1710883845150,-500.0,0.00030136,2]
[319584432,1710883845160,-500.0,0.00030136,2]
[319584433,1710883845170,-500.0,0.00030136,2]
[319584434,1710883845183,-1032.08,0.00030136,2]
[319584435,1710883845192,-729.17,0.00030136,2]
[319584436,1710883845202,-500.0,0.00030136,2]
[319584437,1710883845211,-1913.06,0.00030136,2]
[319584438,1710883845221,-500.0,0.00030136,2]
[319584439,1710883845230,-500.0,0.00030136,2]
[319584440,1710883845241,-500.0,0.00030136,2]
[319584441,1710883845251,-1372.24,0.00030136,2]
[319584442,1710883845260,-500.0,0.00030136,2]
[319584443,1710883845270,-500.0,0.00030136,2]
[319584444,1710883845280,-711.63,0.00030136,2]
[319584445,1710883845290,-500.0,0.00030136,2]
[319584446,1710883845299,-1163.5,0.00030136,2]
[319584447,1710883845308,-500.0,0.00030136,2]
[319584448,1710883845317,-169.77270147,0.00030136,2]
[319584449,1710883845327,-500.0,0.00030136,2]
[319584450,1710883845336,-500.0,0.00030136,2]
[319584451,1710883845345,-500.0,0.00030136,2]
[319584452,1710883845355,-500.0,0.00030136,2]
[319584453,1710883845365,-500.0,0.00030136,2]
[319584454,1710883845374,-500.0,0.00030136,2]
[319584455,1710883845384,-500.0,0.00030136,2]
[319584456,1710883845393,-500.0,0.00030136,2]
[319584457,1710883845403,-652.32,0.00030136,2]
[319584458,1710883845412,-307.92068185,0.00030136,2]
[319584459,1710883845422,-500.0,0.00030136,2]
[319584460,1710883845431,-500.0,0.00030136,2]
[319584461,1710883845440,-500.0,0.00030136,2]
[319584462,1710883845450,-500.0,0.00030136,2]
[319584463,1710883845460,-500.0,0.00030136,2]
[319584464,1710883845469,-500.0,0.00030136,2]
[319584465,1710883845479,-500.0,0.00030136,2]
[319584466,1710883845489,-500.0,0.00030136,2]
[319584467,1710883845498,-910.23,0.00030136,2]
[319584468,1710883845508,-500.0,0.00030136,2]
[319584469,1710883845518,-500.0,0.00030136,2]
[319584470,1710883845528,-740.28,0.00030136,2]
[319584471,1710883845537,-500.0,0.00030136,2]
[319584472,1710883845547,-500.0,0.00030136,2]
[319584473,1710883845557,-624.91,0.00030136,2]
[319584474,1710883845566,-229.78153855,0.00030136,2]
[319584475,1710883845576,-968.04,0.00030136,2]
[319584476,1710883845586,-500.0,0.00030136,2]
[319584477,1710883845595,-500.0,0.00030136,2]
[319584478,1710883845605,-500.0,0.00030136,2]
[319584479,1710883845614,-500.0,0.00030136,2]
[319584480,1710883845624,-500.0,0.00030136,2]
[319584481,1710883845633,-832.42,0.00030136,2]
[319584482,1710883845643,-500.0,0.00030136,2]
[319584483,1710883845652,-500.0,0.00030136,2]
[319584484,1710883845662,-500.0,0.00030136,2]
[319584485,1710883845671,-502.89045683,0.00030136,2]
[319584486,1710883845681,-500.0,0.00030136,2]
[319584487,1710883845690,-500.0,0.00030136,2]
[319584488,1710883845699,-500.0,0.00030136,2]
[319584489,1710883845709,-510.18,0.00030136,2]
[319584490,1710883845718,-500.0,0.00030136,2]
[319584491,1710883845727,-500.0,0.00030136,2]
[319584492,1710883845737,-500.0,0.00030136,2]
[319584493,1710883845747,-500.0,0.00030136,2]
[319584494,1710883845756,-1150.05,0.00030136,2]
[319584495,1710883845766,-500.0,0.00030136,2]
[319584496,1710883845776,-608.08,0.00030136,2]
[319584497,1710883845785,-505.97,0.00030136,2]
[319584498,1710883845794,-1660.24,0.00030136,2]
[319584499,1710883845804,-501.69998862,0.00030136,2]
[319584500,1710883845813,-500.0,0.00030136,2]
[319584501,1710883845822,-626.77,0.00030136,2]
[319584502,1710883845832,-500.0,0.00030136,2]
[319584503,1710883845841,-1083.97,0.00030136,2]
[319584504,1710883845851,-500.0,0.00030136,2]
[319584505,1710883845860,-500.0,0.00030136,2]
[319584506,1710883845869,-573.58,0.00030136,2]
[319584507,1710883845879,-500.0,0.00030136,2]
[319584508,1710883845888,-500.0,0.00030136,2]
[319584509,1710883845897,-500.0,0.00030136,2]
[319584510,1710883845907,-713.26,0.00030136,2]
[319584511,1710883845917,-524.58,0.00030136,2]
[319584512,1710883845926,-1659.61,0.00030136,2]
[319584513,1710883845936,-786.87,0.00030136,2]
[319584514,1710883845946,-987.6,0.00030136,2]
[319584515,1710883845955,-500.19626812,0.00030136,2]
[319584516,1710883845965,-562.22,0.00030136,2]
[319584517,1710883845974,-884.6,0.00030136,2]
[319584518,1710883845983,-377.90807004,0.00030136,2]
[319584519,1710883845994,-176.50950969,0.00030136,2]
[319584520,1710883846004,-500.0,0.00030136,2]
[319584521,1710883846013,-495.6477125,0.00030136,2]
[319584522,1710883846023,-509.12,0.00030136,2]
[319584523,1710883846033,-500.0,0.00030136,2]
[319584524,1710883846043,-1565.75,0.00030136,2]
[319584525,1710883846053,-500.0,0.00030136,2]
[319584526,1710883846063,-500.0,0.00030136,2]
[319584527,1710883846073,-704.58,0.00030136,2]
[319584528,1710883846083,-500.0,0.00030136,2]
[319584529,1710883846092,-500.0,0.00030136,2]
[319584530,1710883846106,-500.0,0.00030136,2]
[319584531,1710883846115,-501.60529253,0.00030136,2]
[319584532,1710883846125,-500.0,0.00030136,2]
[319584533,1710883846135,-500.0,0.00030136,2]
[319584534,1710883846145,-500.0,0.00030136,2]
[319584535,1710883846155,-500.0,0.00030136,2]
[319584536,1710883846164,-500.0,0.00030136,2]
[319584537,1710883846173,-1177.64,0.00030136,2]
[319584538,1710883846184,-1298.95,0.00030136,2]
[319584539,1710883846194,-500.0,0.00030136,2]
[319584540,1710883846205,-157.63835002,0.00030136,2]
[319584541,1710883846215,-766.46,0.00030136,2]
[319584542,1710883846226,-500.0,0.00030136,2]
[319584543,1710883846237,-500.0,0.00030136,2]
[319584544,1710883846247,-2115.61,0.00030136,2]
[319584545,1710883846257,-500.0,0.00030136,2]
[319584546,1710883846267,-1208.26,0.00030136,2]
[319584547,1710883846278,-500.0,0.00030136,2]
[319584548,1710883846288,-1208.9,0.00030136,2]
[319584549,1710883846299,-766.73,0.00030136,2]
[319584550,1710883846309,-723.63,0.00030136,2]
[319584551,1710883846319,-510.38489034,0.00030136,2]
[319584552,1710883846329,-710.55,0.00030136,2]
[319584553,1710883846338,-755.48,0.00030136,2]
[319584554,1710883846348,-564.92770428,0.00030136,2]